fUST/lending_fUST_20241026
["ID","MTS","AMOUNT","RATE_DAILY","PERIOD"]
[340840765,1729913438440,-182.408693,0.00018593,2]
[340840767,1729913438451,-182.408693,0.00018598,2]
[340840769,1729913438462,-302.5509068,0.000186,2]
[340840772,1729913438472,-182.408693,0.00018603,2]
[340840774,1729913438483,-182.408693,0.00018608,2]
[340840776,1729913438493,-182.408693,0.00018613,2]
[340840777,1729913438502,-182.408693,0.00018617,2]
[340840779,1729913438512,-182.408693,0.00018622,2]
[340840782,1729913438524,-182.408693,0.00018627,2]
[340840784,1729913438536,-182.408693,0.00018632,2]
[340840786,1729913438546,-182.408693,0.00018637,2]
[340840787,1729913438555,-182.408693,0.00018642,2]
[340840790,1729913438566,-182.408693,0.00018647,2]
[340840792,1729913438575,-151.0,0.00018647,2]
[340840794,1729913438592,-151.0,0.00018647,2]
[340840795,1729913438602,-182.408693,0.00018652,2]
[340840796,1729913438611,-182.408693,0.00018657,2]
[340840797,1729913438620,-199.95498,0.00018657,2]
[340840798,1729913438630,-199.95498,0.00018657,2]
[340840799,1729913438639,-182.408693,0.00018662,2]
[340840800,1729913438648,-182.408693,0.00018667,2]
[340840801,1729913438657,-182.408693,0.00018671,2]
[340840802,1729913438667,-182.408693,0.00018676,2]
[340840803,1729913438676,-199.95498,0.00018681,2]
[340840804,1729913438685,-199.95498,0.00018681,2]
[340840805,1729913438694,-151.0,0.00018681,2]
[340840806,1729913438703,-151.0,0.00018681,2]
[340840807,1729913438712,-174.215084,0.00018681,2]
[340840809,1729913438721,-182.408693,0.00018681,2]
[340840811,1729913438731,-160.028014,0.00018755,2]
[340840813,1729913438741,-160.028014,0.00018816,2]
[340840815,1729913438750,-500.0,0.00018867,2]
[340840817,1729913438759,-160.028014,0.00018877,2]
[340840819,1729913438768,-160.028014,0.00018939,2]
[340840821,1729913438777,-160.028014,0.00019,2]
[340840823,1729913438786,-160.028014,0.00019061,2]
[340840825,1729913438796,-151.0,0.00019099,2]
[340840827,1729913438806,-174.461871,0.00019099,2]
[340840829,1729913438816,-420.0,0.000191,2]
[340840831,1729913438825,-160.028014,0.00019122,2]
[340840833,1729913438835,-200.68204691,0.00019141,2]
[340840835,1729913438845,-199.95498,0.00019155,2]
[340840837,1729913438854,-199.95498,0.00019155,2]
[340840839,1729913438863,-124.56351637,0.00019178,2]
[340841140,1729913453490,500.0,0.00023,120]
[340841141,1729913482471,507.91711429,0.00023,120]
[340841406,1729914640063,-335.206187,0.00013973,2]
[340843233,1729915229285,1145.94,0.00011015,2]
[340843234,1729915241720,1145.93,0.00011015,2]
[340843372,1729916866058,1774.6,0.00023,120]
[340843373,1729916985759,-7153.83262317,0.00011233,2]
[340843523,1729917489651,-5436.16737683,0.0001106,2]
[340843529,1729918143708,500.0,0.00023,120]
[340843538,1729918156803,500.0,0.00023,120]
[340843600,1729918238741,-8897.14948252,0.00011021,2]
[340843601,1729918238750,-300.0,0.00013971,2]
[340843602,1729918238759,-314.54504997,0.00013972,2]
[340843603,1729918238768,-400.0,0.00013973,2]
[340843604,1729918238777,-300.0,0.00015367,2]
[340843605,1729918238786,-420.0,0.00015368,2]
[340843606,1729918238795,-200.0,0.00016905,2]
[340843607,1729918238805,-381.132,0.0001742,2]
[340843608,1729918238814,-246.409655,0.0001742,2]
[340843609,1729918238824,-151.0,0.0001742,2]
[340843610,1729918238833,-151.0,0.0001742,2]
[340843611,1729918238843,-151.0,0.0001742,2]
[340843612,1729918238853,-151.0,0.0001742,2]
[340843613,1729918238862,-151.0,0.0001742,2]
[340843614,1729918238871,-151.0,0.0001742,2]
[340843615,1729918238881,-500.90960872,0.00018,2]
[340843616,1729918238890,-466.95830386,0.00018205,2]
[340843617,1729918238903,-151.0,0.00018205,2]
[340843618,1729918238912,-151.0,0.00018205,2]
[340843619,1729918238921,-151.0,0.00018205,2]
[340843620,1729918238931,-151.0,0.00018499,2]
[340843621,1729918238940,-1305.56385138,0.000185,2]
[340843622,1729918238949,-151.0,0.000185,2]
[340843623,1729918238958,-151.0,0.000185,2]
[340843624,1729918238971,-151.0,0.000185,2]
[340843625,1729918238982,-190.630076,0.000185,2]
[340843626,1729918238991,-151.0,0.000185,2]
[340843627,1729918239000,-151.0,0.000185,2]
[340843628,1729918239010,-151.0,0.000185,2]
[340843629,1729918239019,-151.0,0.000189,2]
[340843630,1729918239028,-151.0,0.0001894,2]
[340843631,1729918239037,-151.0,0.0001894,2]
[340843632,1729918239046,-215.101376,0.00019002,2]
[340843633,1729918239056,-151.0,0.00019152,2]
[340843634,1729918239066,-151.0,0.00019162,2]
[340843635,1729918239074,-160.609006,0.00019178,2]
[340843636,1729918239083,-157.633374,0.00019178,2]
[340843637,1729918239093,-160.028014,0.00019527,2]
[340843638,1729918239102,-160.028014,0.0001964,2]
[340843639,1729918239112,-215.101376,0.00019687,2]
[340843640,1729918239121,-160.028014,0.00019753,2]
[340843641,1729918239130,-160.028014,0.00019866,2]
[340843642,1729918239139,-160.028014,0.00019979,2]
[340843643,1729918239150,-346.01782752,0.0002,2]
[340843644,1729918239160,-3472.00515918,0.0002,2]
[340843731,1729919438974,-357.066131,0.00013973,2]
[340843733,1729919438984,-242.933869,0.00013973,2]
[340844130,1729920623742,600.86,0.00014,30]
[340844230,1729920640171,-7767.94031667,0.00013914,2]
[340844231,1729920640186,-400.0,0.00013973,2]
[340844232,1729920640198,-397.16337066,0.00018,2]
[340844233,1729920640210,-810.0312382,0.00019012,2]
[340844234,1729920640222,-300.0,0.00019042,2]
[340844235,1729920640233,-300.0,0.00019042,2]
[340844236,1729920640244,-324.9518816,0.00019044,2]
[340844237,1729920640256,-160.909342,0.00019077,2]
[340844238,1729920640269,-191.4332344,0.00019133,2]
[340844239,1729920640281,-157.633374,0.00019178,2]
[340844240,1729920640293,-215.101376,0.00019197,2]
[340844241,1729920640303,-160.909342,0.00019202,2]
[340844242,1729920640314,-151.0,0.00019254,2]
[340844243,1729920640325,-151.0,0.00019254,2]
[340844244,1729920640338,-160.909342,0.00019326,2]
[340844245,1729920640349,-160.909342,0.0001945,2]
[340844246,1729920640361,-151.0,0.00019543,2]
[340844247,1729920640372,-151.0,0.00019543,2]
[340844248,1729920640385,-160.909342,0.00019574,2]
[340844249,1729920640396,-160.909342,0.00019699,2]
[340844250,1729920640408,-151.0,0.00019728,2]
[340844251,1729920640421,-151.0,0.00019728,2]
[340844252,1729920640434,-1548.638876,0.0001976,2]
[340844253,1729920640446,-160.909342,0.00019823,2]
[340844254,1729920640458,-151.0,0.00019918,2]
[340844255,1729920640468,-151.0,0.00019918,2]
[340844256,1729920640478,-160.909342,0.00019947,2]
[340844257,1729920640488,-209.69669998,0.00019999,2]
[340844258,1729920640500,-667.00787678,0.0002,2]
[340844259,1729920640512,-160.909342,0.00020071,2]
[340844260,1729920640530,-1548.638876,0.0002026,2]
[340844261,1729920640541,-151.0,0.0002026,2]
[340844262,1729920640553,-151.0,0.0002026,2]
[340844263,1729920640564,-400.0,0.00020447,2]
[340844264,1729920640578,-1548.638876,0.0002076,2]
[340844265,1729920640590,-151.0,0.0002076,2]
[340844266,1729920640601,-151.0,0.0002076,2]
[340844267,1729920640615,-500.0,0.00020878,2]
[340844268,1729920640626,-363.167,0.0002121,2]
[340844269,1729920640637,-1548.638876,0.0002126,2]
[340844270,1729920640648,-151.0,0.0002126,2]
[340844271,1729920640661,-151.0,0.0002126,2]
[340844272,1729920640672,-1548.638876,0.0002176,2]
[340844273,1729920640683,-151.0,0.0002176,2]
[340844274,1729920640694,-232.369721,0.0002176,2]
[340844275,1729920640705,-166.666666,0.00021918,2]
[340844276,1729920640715,-151.0,0.00022255,7]
[340844277,1729920640728,-166.666666,0.00022431,2]
[340844278,1729920640739,-151.0,0.00022844,7]
[340844279,1729920640749,-430.72748281,0.00022873,2]
[340844280,1729920640760,-555.1646379,0.00022935,2]
[340844281,1729920640774,-456.06759751,0.00022935,2]
[340844282,1729920640785,-578.51948112,0.00022936,2]
[340844283,1729920640796,-4765.09764822,0.00022936,2]
[340844359,1729921832107,-315.289915,0.00013973,2]
[340844361,1729921832119,-360.0,0.00013973,2]
[340844363,1729921832134,-157.633374,0.00020308,2]
[340844364,1729921832145,-315.289915,0.00020447,2]
[340844365,1729921832155,-360.0,0.00020447,2]
[340844366,1729921832165,-415.1107214,0.00020609,2]
[340844367,1729921832175,-159.944786,0.00020631,2]
[340844368,1729921832184,-159.944786,0.00020846,2]
[340844369,1729921832194,-147.9499017,0.00021061,2]
[340844424,1729921838245,-11.9948843,0.00021061,2]
[340844426,1729921838255,-198.0562923,0.00021186,2]
[340844428,1729921838265,-159.944786,0.00021276,2]
[340844430,1729921838275,-7851.24444507,0.00021371,2]
[340844432,1729921838284,-159.944786,0.00021491,2]
[340844434,1729921838293,-3564.56737776,0.0002156,2]
[340844436,1729921838303,-300.0,0.0002164,2]
[340844438,1729921838313,-300.0,0.0002164,2]
[340844440,1729921838322,-7851.24444507,0.00021649,2]
[340844442,1729921838332,-159.944786,0.00021706,2]
[340844443,1729921838343,-166.666666,0.00021918,2]
[340844444,1729921838353,-487.27229576,0.00021966,2]
[340844446,1729921838363,-6941.74758584,0.00021983,2]
[340844448,1729921838374,-579.88121916,0.00022083,2]
[340844449,1729921838383,-166.666666,0.00022431,2]
[340844450,1729921838394,-350.0,0.00022539,2]
[340844451,1729921838404,-341.79,0.00022739,2]
[340844452,1729921838414,-448.10664219,0.00022762,8]
[340844453,1729921838424,-620.4712898,0.0002278,2]
[340844454,1729921838433,-501.636043,0.0002278,2]
[340844455,1729921838444,-501.71359152,0.0002278,2]
[340844456,1729921838454,-501.70886559,0.0002278,2]
[340844457,1729921838464,-501.24095846,0.0002278,2]
[340844458,1729921838475,-500.0,0.0002278,2]
[340844459,1729921838486,-500.77465861,0.0002278,2]
[340844460,1729921838495,-500.0,0.0002278,2]
[340844461,1729921838505,-500.95258867,0.0002278,2]
[340844462,1729921838515,-346.076,0.0002283,2]
[340844463,1729921838524,-344.58198628,0.00022837,2]
[340844464,1729921838535,-351.14673291,0.0002286,2]
[340844485,1729921888903,-172.962445,0.00023836,120]
[340844486,1729921888935,-8.167555,0.00027,120]
[340844487,1729921888972,-154.74620096,0.00027,120]
[340844488,1729921889095,-175.02,0.00027397,120]
[340844489,1729921889144,-324.98,0.00027397,120]
[340844490,1729921889166,-75.02,0.00027397,120]
[340844491,1729921889213,-346.193,0.00027397,120]
[340844494,1729922337965,500.0,0.00027397,120]
[340844495,1729922350408,345.25379904,0.00027397,120]
[340844501,1729922791418,-351.82720515,0.00024,30]
[340844502,1729922791452,-1056.86,0.000266,31]
[340844503,1729922791479,-1056.86,0.000266,31]
[340844504,1729922791506,-1056.86,0.000266,31]
[340844505,1729922791532,-1056.86,0.000266,31]
[340844506,1729922791559,-1056.86,0.000266,31]
[340844507,1729922791585,-1056.86,0.000266,31]
[340844508,1729922791610,-1056.86,0.000266,31]
[340844509,1729922791637,-1056.86,0.000266,31]
[340844510,1729922791663,-1056.86,0.000266,31]
[340844511,1729922791692,-1056.86,0.000266,31]
[340844512,1729922791720,-1056.86,0.000266,31]
[340844513,1729922791746,-1056.86,0.000266,31]
[340844514,1729922791776,-1056.86,0.000268,31]
[340844515,1729922791805,-1056.86,0.000268,31]
[340844516,1729922791838,-1056.86,0.000268,31]
[340844517,1729922791866,-1056.86,0.000268,31]
[340844518,1729922791893,-1056.86,0.000268,31]
[340844519,1729922791919,-1056.86,0.000268,31]
[340844520,1729922791945,-1056.86,0.000268,31]
[340844521,1729922791971,-1056.86,0.000268,31]
[340844522,1729922791997,-1056.86,0.000268,31]
[340844523,1729922792023,-1056.86,0.000268,31]
[340844524,1729922792050,-1056.86,0.000268,31]
[340844525,1729922792076,-1056.86,0.000268,31]
[340844526,1729922792102,-1056.86,0.000268,31]
[340844527,1729922792129,-1056.86,0.000268,31]
[340844528,1729922792155,-1056.86,0.000268,31]
[340844529,1729922792181,-1056.86,0.000268,31]
[340844530,1729922792207,-1056.86,0.000268,31]
[340844531,1729922792233,-1056.86,0.000268,31]
[340844532,1729922792259,-1056.86,0.000268,31]
[340844533,1729922792284,-1056.86,0.000268,31]
[340844534,1729922792310,-1056.86,0.000268,31]
[340844535,1729922792336,-1056.86,0.000268,31]
[340844536,1729922792363,-1056.86,0.000268,31]
[340844537,1729922792389,-1056.86,0.000268,31]
[340844538,1729922792414,-1056.86,0.000269,31]
[340844539,1729922792440,-1056.86,0.000269,31]
[340844540,1729922792467,-1056.86,0.000269,31]
[340844541,1729922792492,-1056.86,0.000269,31]
[340844542,1729922792517,-1056.86,0.000269,31]
[340844543,1729922792542,-1056.86,0.000269,31]
[340844544,1729922792567,-1056.86,0.000269,31]
[340844545,1729922792594,-1056.86,0.000269,31]
[340844546,1729922792623,-1056.86,0.000269,31]
[340844547,1729922792651,-1056.86,0.000269,31]
[340844548,1729922792680,-1056.86,0.000269,31]
[340844549,1729922792920,-1056.86,0.000269,31]
[340844550,1729922792948,-1056.86,0.000269,31]
[340844551,1729922792977,-1056.86,0.000269,31]
[340844552,1729922793003,-1056.86,0.000269,31]
[340844553,1729922793032,-1056.86,0.000269,31]
[340844554,1729922793060,-1056.86,0.000269,31]
[340844555,1729922793089,-1056.86,0.000269,31]
[340844556,1729922793116,-1056.86,0.000269,31]
[340844557,1729922793144,-1056.86,0.000269,31]
[340844558,1729922793170,-1056.86,0.000269,31]
[340844559,1729922793198,-1056.86,0.000269,31]
[340844560,1729922793226,-1056.86,0.000269,31]
[340844561,1729922793253,-1056.86,0.000269,31]
[340844562,1729922793280,-1056.86,0.000271,31]
[340844563,1729922793306,-1056.86,0.000271,31]
[340844564,1729922793333,-1056.86,0.000271,31]
[340844565,1729922793360,-1056.86,0.000271,31]
[340844566,1729922793386,-1056.86,0.000271,31]
[340844567,1729922793414,-1056.86,0.000271,31]
[340844568,1729922793441,-1056.86,0.000271,31]
[340844569,1729922793468,-1056.86,0.000271,31]
[340844570,1729922793496,-1056.86,0.000271,31]
[340844571,1729922793522,-1056.86,0.000271,31]
[340844572,1729922793550,-1056.86,0.000271,31]
[340844573,1729922793578,-1056.86,0.000271,31]
[340844574,1729922793607,-1056.86,0.000271,31]
[340844575,1729922793635,-1056.86,0.000271,31]
[340844576,1729922793662,-1056.86,0.000271,31]
[340844577,1729922793692,-1056.86,0.000271,31]
[340844578,1729922793721,-1056.86,0.000271,31]
[340844579,1729922793749,-1056.86,0.000271,31]
[340844580,1729922793779,-1056.86,0.000271,31]
[340844581,1729922793807,-1056.86,0.000271,31]
[340844582,1729922793836,-1056.86,0.000271,31]
[340844583,1729922793863,-1056.86,0.000271,31]
[340844584,1729922793895,-1056.86,0.000271,31]
[340844585,1729922793923,-1056.86,0.000271,31]
[340844586,1729922793951,-1056.86,0.000273,31]
[340844587,1729922793979,-1056.86,0.000273,31]
[340844588,1729922794006,-1056.86,0.000273,31]
[340844589,1729922794034,-1056.86,0.000273,31]
[340844590,1729922794060,-1056.86,0.000273,31]
[340844591,1729922794088,-1056.86,0.000273,31]
[340844592,1729922794115,-1056.86,0.000273,31]
[340844593,1729922794142,-1056.86,0.000273,31]
[340844594,1729922794170,-1056.86,0.000273,31]
[340844595,1729922794198,-1056.86,0.000273,31]
[340844596,1729922794229,-1056.86,0.000273,31]
[340844597,1729922794259,-1056.86,0.000273,31]
[340844598,1729922794286,-1056.86,0.000273,31]
[340844599,1729922794313,-1056.86,0.000273,31]
[340844600,1729922794342,-1056.86,0.000273,31]
[340844601,1729922794370,-1056.86,0.000273,31]
[340844602,1729922794395,-154.74620096,0.00027397,120]
[340844603,1729922794421,-78.787,0.00027397,120]
[340844604,1729922794448,-329.167,0.000278,120]
[340844605,1729922794473,-181.13,0.0002798,120]
[340844606,1729922794498,-200.0,0.000281,120]
[340844607,1729922794523,-200.0,0.000281,120]
[340844608,1729922794549,-1234.0,0.00029041,120]
[340844609,1729922794575,-200.0,0.000296,120]
[340844610,1729922794602,-1095.08,0.000296,30]
[340844611,1729922794627,-563.05,0.000296,30]
[340844612,1729922794654,-151.0,0.0003,120]
[340844613,1729922794679,-180.0,0.0003,120]
[340844614,1729922794707,-200.0,0.0003,120]
[340844615,1729922794732,-2466.7,0.0003,64]
[340844616,1729922794759,-500.0,0.00030137,120]
[340844617,1729922794789,-500.0,0.00030137,120]
[340844618,1729922794816,-329.041,0.0003014,120]
[340844619,1729922794843,-329.102,0.0003045,120]
[340844620,1729922794871,-993.0,0.00031,120]
[340844621,1729922794897,-336.0436,0.000311,120]
[340844622,1729922794922,-4661.29195541,0.00031167,60]
[340844623,1729922794948,-710.8714,0.00031363,30]
[340844624,1729922794976,-151.0,0.0003137,120]
[340844625,1729922795003,-1095.08,0.000316,30]
[340844626,1729922795028,-563.05,0.000316,30]
[340844627,1729922795056,-160.0,0.00032,120]
[340844628,1729922795084,-3000.0,0.00032,82]
[340844629,1729922795113,-3097.90189748,0.00032,120]
[340844630,1729922795143,-151.0,0.0003274,120]
[340844631,1729922795170,-150.5,0.00032847,120]
[340844632,1729922795195,-614.0,0.00032847,120]
[340844633,1729922795220,-150.5,0.00032857,120]
[340844634,1729922795247,-614.0,0.00032857,120]
[340844635,1729922795272,-150.5,0.00032867,120]
[340844636,1729922795297,-174.54,0.00032867,120]
[340844637,1729922795321,-614.0,0.00032867,120]
[340844638,1729922795346,-500.0,0.00032876,60]
[340844639,1729922795370,-525.80945915,0.00032876,60]
[340844640,1729922795394,-1103.127631,0.00032877,120]
[340844641,1729922795420,-500.0,0.00032877,120]
[340844642,1729922795444,-500.0,0.00032877,60]
[340844643,1729922795468,-1224.0,0.000329,30]
[340844644,1729922795493,-44926.51617148,0.00033,30]
[340844645,1729922795518,-329.02,0.000331,120]
[340844646,1729922795542,-1095.08,0.000334,30]
[340844647,1729922795566,-563.05,0.000334,30]
[340844648,1729922795592,-566.0,0.00033666,120]
[340844649,1729922795617,-160.0,0.00034,120]
[340844650,1729922795643,-151.0,0.0003411,120]
[340844651,1729922795673,-2202.48,0.00034246,120]
[340844652,1729922795858,-551.26938282,0.00034247,60]
[340844653,1729922795887,-1393.99999,0.00034478,34]
[340844654,1729922795913,-1288.8,0.000345,30]
[340844655,1729922795939,-2404.34,0.000345,30]
[340844656,1729922795967,-200.0,0.00035,60]
[340844657,1729922795992,-1190.3550525,0.00035,120]
[340844658,1729922796018,-235.0,0.00035,120]
[340844659,1729922796050,-2202.48,0.00035205,120]
[340844660,1729922796076,-151.0,0.00035479,120]
[340844661,1729922796100,-468.0218,0.000356,120]
[340844662,1729922796124,-500.0,0.00035616,120]
[340844663,1729922796148,-500.0,0.00035616,120]
[340844664,1729922796172,-329.044,0.0003562,30]
[340844665,1729922796196,-329.028,0.0003575,120]
[340844666,1729922796220,-2000.0,0.00036,120]
[340844667,1729922796244,-500.0,0.00036,120]
[340844668,1729922796271,-1288.8,0.00036,30]
[340844669,1729922796295,-2404.34,0.00036,30]
[340844670,1729922796320,-2202.48,0.00036164,120]
[340844671,1729922796346,-500.0,0.00036437,60]
[340844672,1729922796372,-1470.0,0.0003666,120]
[340844673,1729922796396,-1000.0,0.000368,60]
[340844674,1729922796424,-151.0,0.00036849,120]
[340844675,1729922796451,-500.0,0.00036985,60]
[340844676,1729922796478,-329.071,0.0003699,30]
[340844677,1729922796502,-468.0218,0.000371,120]
[340844678,1729922796527,-2202.48,0.00037123,120]
[340844679,1729922796553,-390.5,0.000375,120]
[340844680,1729922796582,-500.0,0.00037533,60]
[340844681,1729922796609,-1288.8,0.000376,30]
[340844682,1729922796636,-2404.34,0.000376,30]
[340844683,1729922796663,-2000.0,0.00038,120]
[340844684,1729922796694,-500.0,0.00038,120]
[340844685,1729922796721,-1000.0,0.00038,120]
[340844686,1729922796748,-500.0,0.00038081,60]
[340844687,1729922796779,-2202.48,0.00038082,120]
[340844688,1729922796805,-151.0,0.00038219,120]
[340844689,1729922796830,-512.43036143,0.00038356,120]
[340844690,1729922796855,-500.0,0.00038356,120]
[340844691,1729922796883,-501.1083519,0.00038356,120]
[340844692,1729922796910,-229.49817278,0.00038356,120]
[340844693,1729922796934,-500.0,0.00038356,120]
[340844694,1729922796960,-500.0,0.00038356,120]
[340844695,1729922796986,-500.0,0.00038356,120]
[340844696,1729922797013,-501.84394564,0.00038356,120]
[340844697,1729922797038,-500.0,0.00038356,120]
[340844698,1729922797062,-500.92815009,0.00038356,120]
[340844699,1729922797086,-500.0,0.00038356,120]
[340844700,1729922797111,-500.0,0.00038356,120]
[340844701,1729922797136,-500.0,0.00038356,120]
[340844702,1729922797162,-500.0,0.00038356,120]
[340844703,1729922797186,-500.0,0.00038356,120]
[340844704,1729922797212,-500.0,0.00038356,120]
[340844705,1729922797236,-181.08455509,0.00038356,120]
[340844706,1729922797261,-500.0,0.00038356,120]
[340844707,1729922797287,-500.0,0.00038356,120]
[340844708,1729922797311,-500.0,0.00038356,120]
[340844709,1729922797335,-500.0,0.00038356,120]
[340844710,1729922797360,-500.0,0.00038356,120]
[340844711,1729922797383,-500.0,0.00038356,120]
[340844712,1729922797408,-560.27,0.00038356,120]
[340844713,1729922797431,-611.66,0.00038356,120]
[340844714,1729922797455,-501.31671277,0.00038356,120]
[340844715,1729922797477,-500.0,0.00038356,120]
[340844716,1729922797501,-529.03,0.00038356,120]
[340844717,1729922797525,-501.57752426,0.00038356,120]
[340844718,1729922797549,-500.0,0.00038356,120]
[340844719,1729922797578,-500.0,0.00038356,120]
[340844720,1729922797601,-258.29588142,0.00038356,120]
[340844721,1729922797626,-500.0,0.00038356,120]
[340844722,1729922797650,-500.0,0.00038356,120]
[340844723,1729922797674,-500.0,0.00038356,120]
[340844724,1729922797700,-614.4,0.00038356,120]
[340844725,1729922797724,-676.77,0.00038356,120]
[340844726,1729922797748,-1037.79,0.00038356,120]
[340844727,1729922797773,-501.03741219,0.00038356,120]
[340844728,1729922797798,-500.0,0.00038356,120]
[340844729,1729922797822,-500.0,0.00038356,120]
[340844730,1729922797846,-500.0,0.00038356,120]
[340844731,1729922797870,-503.03095329,0.00038356,120]
[340844732,1729922797898,-500.0,0.00038356,120]
[340844733,1729922797924,-561.85,0.00038356,120]
[340844734,1729922797950,-500.0,0.00038356,120]
[340844735,1729922797976,-573.22,0.00038356,120]
[340844736,1729922798002,-500.0,0.00038356,120]
[340844737,1729922798028,-500.0,0.00038356,120]
[340844738,1729922798053,-782.58,0.00038356,120]
[340844739,1729922798079,-500.0,0.00038356,120]
[340844740,1729922798104,-500.0,0.00038356,120]
[340844741,1729922798131,-500.0,0.00038356,120]
[340844742,1729922798158,-500.0,0.00038356,120]
[340844743,1729922798182,-500.0,0.00038356,120]
[340844744,1729922798206,-507.27199397,0.00038356,120]
[340844745,1729922798230,-500.0,0.00038356,120]
[340844746,1729922798254,-500.0,0.00038356,120]
[340844747,1729922798277,-500.0,0.00038356,120]
[340844748,1729922798301,-187.09670017,0.00038356,120]
[340844749,1729922798325,-510.55637977,0.00038356,120]
[340844750,1729922798350,-500.0,0.00038356,120]
[340844751,1729922798377,-500.0,0.00038356,120]
[340844752,1729922798402,-500.0,0.00038356,120]
[340844753,1729922798426,-500.0,0.00038356,120]
[340844754,1729922798457,-500.0,0.00038356,120]
[340844755,1729922798483,-333.19222924,0.00038356,120]
[340844756,1729922798510,-500.0,0.00038356,120]
[340844757,1729922798693,-501.96753272,0.00038356,120]
[340844758,1729922798723,-500.0,0.00038356,120]
[340844759,1729922798748,-500.0,0.00038356,120]
[340844760,1729922798775,-500.0,0.00038356,120]
[340844761,1729922798800,-500.0,0.00038356,120]
[340844762,1729922798826,-500.0,0.00038356,120]
[340844763,1729922798851,-501.6345992,0.00038356,120]
[340844764,1729922798875,-508.61221167,0.00038356,120]
[340844765,1729922798898,-500.0,0.00038356,120]
[340844766,1729922798922,-500.0,0.00038356,120]
[340844767,1729922798947,-500.0,0.00038356,120]
[340844768,1729922798974,-500.0,0.00038356,120]
[340844769,1729922799001,-525.25015013,0.00038356,120]
[340844770,1729922799025,-500.0,0.00038356,120]
[340844771,1729922799049,-500.0,0.00038356,120]
[340844772,1729922799074,-515.40032704,0.00038356,120]
[340844773,1729922799099,-511.31,0.00038356,120]
[340844774,1729922799122,-500.0,0.00038356,120]
[340844775,1729922799146,-1069.36,0.00038356,120]
[340844776,1729922799170,-519.20066485,0.00038356,120]
[340844777,1729922799194,-570.49231942,0.00038356,120]
[340844778,1729922799218,-500.0,0.00038356,120]
[340844779,1729922799242,-500.0,0.00038356,120]
[340844780,1729922799265,-504.69620163,0.00038356,120]
[340844781,1729922799288,-1000.0,0.00038356,120]
[340844782,1729922799312,-500.0,0.00038356,120]
[340844783,1729922799335,-500.0,0.00038356,120]
[340844784,1729922799360,-306.18273523,0.00038356,120]
[340844785,1729922799384,-500.0,0.00038356,120]
[340844786,1729922799409,-770.08,0.00038356,120]
[340844787,1729922799434,-504.05330096,0.00038356,120]
[340844788,1729922799458,-587.05,0.00038356,120]
[340844789,1729922799482,-500.0,0.00038356,120]
[340844790,1729922799506,-500.0,0.00038356,120]
[340844791,1729922799532,-500.0,0.00038356,120]
[340844792,1729922799556,-500.0,0.00038356,120]
[340844793,1729922799580,-500.0,0.00038356,120]
[340844794,1729922799605,-500.0,0.00038356,120]
[340844795,1729922799629,-500.0,0.00038356,120]
[340844796,1729922799655,-371.6199187,0.00038356,30]